Workbook

Sheet Synthèse
A1: REF C | B1: REF D | E1: Feuilles analysées | G1: <--- A1 et B1 sont les références à utiliser. Si modification, La mise à jour est automatique.
A2: 0000/XXX/AA/05681 | B2: 25 | E2: PMZ05638
A3: 0000/XXX/AA/05659 | B3: 26 | E3: 5681
A4: 01234/XXX/ZZZ/05638 | B4: 6 | E4: 5659
A5: 0000/XXX/AA/05679 | B5: 27 | E5: 5679
A6: 0000/XXX/AA/05680 | B6: 28 | E6: 5680
A7: 0000/XXX/AA/08144 | B7: 29 | E7: 8144
A8: 0000/XXX/AA/05682 | B8: 30 | E8: 5682
A9: 0000/XXX/AA/07359 | B9: 77 | E9: 05682Essai
A10: 0000/XXX/AA/07357 | B10: 88 | E10: 05682Essai (2)
A11: 0000/XXX/AA/05681 | B11: 25
A12: 0000/XXX/AA/07360 | B12: 89
A13: 0000/XXX/AA/07361 | B13: 90
A14: 0000/XXX/AA/07362 | B14: 91
A15: 0000/XXX/AA/07728 | B15: 94
A16: 0000/XXX/AA/07553 | B16: 95
A17: 0000/XXX/AA/07729 | B17: 97
A18: 0000/XXX/AA/07365 | B18: 72
A19: 0000/XXX/AA/07366 | B19: 103
A20: 0000/XXX/AA/07367 | B20: 104
A21: 0000/XXX/AA/05659 | B21: 26
A22: 0000/XXX/AA/7311 | B22: 321
A23: 0000/XXX/AA/7312 | B23: 322
A24: 0000/XXX/AA/7313 | B24: 323
A25: 0000/XXX/AA/7536 | B25: 324
A26: 0000/XXX/AA/7537 | B26: 325
A27: 0000/XXX/AA/7317 | B27: 326
A28: 0000/XXX/AA/7314 | B28: 328
A29: 0000/XXX/AA/7315 | B29: 327
A30: 0000/XXX/AA/7316 | B30: 585
A31: 0000/XXX/AA/07539 | B31: 200
A32: 0000/XXX/AA/07354 | B32: 203
A33: 0000/XXX/AA/07356 | B33: 204
A34: 0000/XXX/AA/07538 | B34: 202
A35: 0000/XXX/AA/05679 | B35: 27
A36: 0000/XXX/AA/07721 | B36: 219
A37: 0000/XXX/AA/07544 | B37: 220
A38: 0000/XXX/AA/07543 | B38: 221
A39: 0000/XXX/AA/07722 | B39: 224
A40: 0000/XXX/AA/50138 | B40: 96
A41: 0000/XXX/AA/07547 | B41: 226
A42: 0000/XXX/AA/07720 | B42: 223
A43: 0000/XXX/AA/07540 | B43: 222
A44: 0000/XXX/AA/07717 | B44: 228
A45: 0000/XXX/AA/07718 | B45: 230
A46: 0000/XXX/AA/07719 | B46: 231
A47: 0000/XXX/AA/07542 | B47: 246
A48: 0000/XXX/AA/07549 | B48: 232
A49: 0000/XXX/AA/05680 | B49: 28
A50: 0000/XXX/AA/07321 | B50: 300
A51: 0000/XXX/AA/07322 | B51: 301
A52: 0000/XXX/AA/07326 | B52: 303
A53: 0000/XXX/AA/07330 | B53: 304
A54: 0000/XXX/AA/07333 | B54: 305
A55: 0000/XXX/AA/07328 | B55: 306
A56: 0000/XXX/AA/07331 | B56: 317
A57: 0000/XXX/AA/07332 | B57: 319
A58: 0000/XXX/AA/08144 | B58: 29
A59: 0000/XXX/AA/07372 | B59: 262
A60: 0000/XXX/AA/07374 | B60: 270
A61: 0000/XXX/AA/07375 | B61: 264
A62: 0000/XXX/AA/07376 | B62: 265
A63: 0000/XXX/AA/07377 | B63: 266
A64: 0000/XXX/AA/07930 | B64: 267
A65: 0000/XXX/AA/07379 | B65: 268
A66: 0000/XXX/AA/07371 | B66: 269
A67: 0000/XXX/AA/05682 | B67: 115
A68: 0000/XXX/AA/07554 | B68: 73
A69: 0000/XXX/AA/7373 | B69: 117
A70: 0000/XXX/AA/7378 | B70: 118
A71: 0000/XXX/AA/7381 | B71: 119
A72: 0000/XXX/AA/07372 | B72: 122
A73: 0000/XXX/AA/07374 | B73: 120
A74: 0000/XXX/AA/07375 | B74: 116
A75: 0000/XXX/AA/07376 | B75: 30
A76: 0000/XXX/AA/07377 | B76: 144
A77: 0000/XXX/AA/07930 | B77: 145
A78: 0000/XXX/AA/07379 | B78: 146
A79: 0000/XXX/AA/07371 | B79: 147
A80: 0000/XXX/AA/05682 | B80: 115
A81: 0000/XXX/AA/07554 | B81: 73
A82: Valeur RefC 777 | B82: 117
A83: Valeur RefC 888 | B83: 118
A84: Valeur RefC 999 | B84: 119
A85: 0000/XXX/AA/07372 | B85: 122
A86: 0000/XXX/AA/07374 | B86: 120
A87: 0000/XXX/AA/07375 | B87: 116
A88: 0000/XXX/AA/07376 | B88: 30
A89: 0000/XXX/AA/07377 | B89: 144
A90: 0000/XXX/AA/07930 | B90: Valeur RefD 111
A91: 0000/XXX/AA/07379 | B91: Valeur RefD 222
A92: 0000/XXX/AA/07371 | B92: Valeur RefD 333
A93: 0000/XXX/AA/05682 | B93: 115
A94: 0000/XXX/AA/07554 | B94: 73
A95: Valeur RefC 777 | B95: 117
A96: Valeur RefC 888 | B96: 118
A97: Valeur RefC 999 | B97: 119
B98: 122
B99: 120
B100: 116
B101: 30
B102: 144
B103: Valeur RefD 111
B104: Valeur RefD 222
B105: Valeur RefD 333

Sheet PMZ05638
P2: REF A | R2: ZZ-01234-0015 | V2: XTAT | Z2: REF A | AB2: ZZ-01234-001A | AF2: XTAT
P3: REF C | R3: 0000/XXX/AA/05681 | Z3: REF C | AB3: 0000/XXX/AA/05659
P4: REF B | R4: XXXXXXXX | Z4: REF B | AB4: XXXXXXXX
P5: REF E | R5: 12 | Z5: REF E | AB5: 13
P6: REF D | R6: 25 | Z6: REF D | AB6: 26
P7: REF F | R7: UU | Z7: REF F | AB7: UU
P8: REF G | R8: K2C 00005/01234 | Z8: REF G | AB8: K2C 00007/01234
D11: REF C | F11: 01234/XXX/ZZZ/05638
D12: REF E | F12: 2
D13: REF D | F13: 6
D14: REF B | F14: 7 | M14: X1
D15: REF F | F15: UU K2C | M15: 190012 | O15: 144 xy | P15: =T13*6 -> 0 | W15: 190013 | Y15: 72 xy | Z15: =+AD13*6 -> 0
D16: REF G | F16: 5/01234 | M16: 60 | O16: CC: | P16: =M16 -> 60 | W16: 180 | Y16: CC: | Z16: =W16 -> 180
M17: ldld | N17: 60 | W17: ldld | X17: 180
P19: REF A | R19: ZZ-01234-0014 | V19: XTAT | Z19: REF A | AB19: ZZ-01234-0009 | AF19: XTAT
P20: REF C | R20: 0000/XXX/AA/05679 | Z20: REF C | AB20: 0000/XXX/AA/05680
P21: REF B | R21: XXXXXXXX | Z21: REF B | AB21: XXXXXXXX
L22: X1 | P22: REF E | R22: 14 | Z22: REF E | AB22: 15
L23: X2 | P23: REF D | R23: 27 | Z23: REF D | AB23: 28
L24: X3 | P24: REF F | R24: UU | Z24: REF F | AB24: UU
P25: REF G | R25: K3C 00004/01234 | Z25: REF G | AB25: K3C 00004/01234
P26: AdreXXe | Z26: AdreXXe
L28: X3
L29: X4
M31: X3
M32: 190014 | O32: 144 xy | P32: =T30*6 -> 0 | W32: 190015 | Y32: 144 xy | Z32: =AD30*6 -> 0
M33: 140 | O33: CC: | P33: =M33 -> 140 | W33: 130 | Y33: CC: | Z33: =W33 -> 130
L34: X4 | M34: ldld | N34: 138 | W34: ldld | X34: 140
L35: X5 | M35: X4
L36: X6
P37: REF A | R37: ZZ-01234-001F | V37: XTAT | Z37: REF A | AB37: ZZ-01234-0016 | AF37: XTAT
P38: REF C | R38: 0000/XXX/AA/08144 | Z38: REF C | AB38: 0000/XXX/AA/05682
P39: REF B | R39: YYYYYY | Z39: REF B | AB39: XXXXXXXX
L40: X6 | P40: REF E | R40: 16 | Z40: REF E | AB40: 17
P41: REF D | R41: 29 | Z41: REF D | AB41: 30
P42: REF F | R42: Xxxxx yyyy | Z42: REF F | AB42: UU
P43: REF G | R43: 0075416/01234 | Z43: REF G | AB43: K3C 00006/01234

Sheet 05681
P2: REF C | R2: 0000/XXX/AA/07359 | V2: XTAT | X2: REF C | Z2: 0000/XXX/AA/07357 | AD2: XTAT
P3: REF B | R3: UU xxxxxx | X3: REF B | Z3: UU xxxxxx
P4: REF E | R4: 12 | X4: REF E | Z4: 14
P5: REF D | R5: 77 | X5: REF D | Z5: 88
P6: REF F | R6: Xxxxx yyyy | X6: REF F | Z6: Zzzzzz yyyyyy
P7: REF G | R7: 33207/01234 | X7: REF G | Z7: 618/01234
D11: REF A | F11: ZZ-01234-0015
D12: REF C | F12: 0000/XXX/AA/05681
D13: REF E | F13: 12 | M13: X1
D14: REF D | F14: 25 | M14: 190057 | O14: 24 xy | P14: 18 | U14: 190068 | W14: 24 xy | X14: 6
D15: REF F | F15: UU | M15: 54 | O15: CC: | P15: =M15 -> 54 | S15: zzzzzz | U15: 34 | W15: CC: | X15: =U15+P15 -> 88
M16: ldld | N16: 52 | U16: ldld | V16: 12
P18: REF C | R18: 0000/XXX/AA/07360 | V18: XTAT
P19: REF B | R19: UU xxxxxx
P20: REF E | R20: 15
L21: X1 | P21: REF D | R21: 89
P22: REF F | R22: Xxxxx yyyy
L23: X2 | P23: REF G | R23: 33208/01234
L25: X3
L28: X4
M29: X2
M30: 190070 | O30: 6 xy | P30: 6
M31: 38 | O31: CC: | P31: =M31 -> 38
L32: X5 | M32: ldld | N32: 28
P34: REF C | R34: 0000/XXX/AA/07361 | V34: XTAT | X34: REF C | Z34: 0000/XXX/AA/07362 | AD34: XTAT
P35: REF B | R35: UU xxxxxx | X35: REF B | Z35: UU xxxxxx
P36: REF E | R36: 16 | X36: REF E | Z36: 17
P37: REF D | R37: 90 | X37: REF D | Z37: 91
P38: REF F | R38: Xxxxx yyyy | X38: REF F | Z38: Xxxxx yyyy
P39: REF G | R39: 33209/01234 | X39: REF G | Z39: 33211/01234
M45: X3
M46: 190071 | O46: 12 xy | P46: 12 | U46: 190074 | W46: 12 xy | X46: 6
M47: 95 | O47: CC: | P47: =M47 -> 95 | S47: zzzzzz | U47: 46 | W47: CC: | X47: =U47+P47 -> 141
M48: ldld | N48: 26 | U48: ldld | V48: 100
P50: REF C | R50: 0000/XXX/AA/07728 | V50: XTAT | X50: REF C | Z50: 0000/XXX/AA/07553 | AD50: XTAT | AF50: REF C | AH50: 0000/XXX/AA/07729 | AL50: XTAT
P51: REF B | R51: UU xxxxxx | X51: REF B | Z51: UU xxxxxx | AF51: REF B | AH51: UU xxxxxx
P52: REF E | R52: 18 | X52: REF E | Z52: 19 | AF52: REF E | AH52: 21
P53: REF D | R53: 94 | X53: REF D | Z53: 95 | AF53: REF D | AH53: 97
P54: REF F | R54: Xxxxx yyyy | X54: REF F | Z54: Zzzzzz yyyyyy | AF54: REF F | AH54: Xxxxx yyyy
P55: REF G | R55: 33212/01234 | X55: REF G | Z55: 5030/01234 | AF55: REF G | AH55: 81212/01234
M61: X4
M62: 190078 | O62: 24 xy | P62: 24 | U62: 190079 | W62: 24 xy | X62: 18 | AC62: 190080 | AE62: 24 xy | AF62: 6
M63: 110 | O63: CC: | P63: =M63 -> 110 | S63: zzzzzz | U63: 18 | W63: CC: | X63: =U63+P63 -> 128 | AA63: zzzzzz | AC63: 24 | AE63: CC: | AF63: =AC63+X63 -> 152
M64: ldld | N64: 100 | U64: ldld | V64: 18 | AC64: ldld | AD64: 53
P66: REF C | R66: 0000/XXX/AA/07365 | V66: XTAT | X66: REF C | Z66: 0000/XXX/AA/07366 | AD66: XTAT | AF66: REF C | AH66: 0000/XXX/AA/07367 | AL66: XTAT
P67: REF B | R67: UU xxxxxx | X67: REF B | Z67: UU xxxxxx | AF67: REF B | AH67: UU xxxxxx
P68: REF E | R68: 22 | X68: REF E | Z68: 23 | AF68: REF E | AH68: 24
P69: REF D | R69: 72 | X69: REF D | Z69: 103 | AF69: REF D | AH69: 104
P70: REF F | R70: Xxxxx yyyy | X70: REF F | Z70: Xxxxx yyyy | AF70: REF F | AH70: Xxxxx yyyy
P71: REF G | R71: 33229/01234 | X71: REF G | Z71: 33233/01234 | AF71: REF G | AH71: 33235/01234
M77: X5
M78: 190060 | O78: 24 xy | P78: 18 | U78: 190088 | W78: 24 xy | X78: 12 | AC78: 190089 | AE78: 24 xy | AF78: 6
M79: 50 | O79: CC: | P79: =M79 -> 50 | S79: zzzzzz | U79: 44 | W79: CC: | X79: =U79+P79 -> 94 | AA79: zzzzzz | AC79: 45 | AE79: CC: | AF79: =AC79+X79 -> 139
M80: ldld | N80: 50 | U80: ldld | V80: 86 | AC80: ldld | AD80: 45

Sheet 05659
D11: REF A | F11: ZZ-01234-001A
D12: REF C | F12: 0000/XXX/AA/05659
D13: REF E | F13: 13
D14: REF D | F14: 26
D15: REF F | F15: UU
D16: REF G | F16: K2C 00007/01234
P18: REF C | R18: 0000/XXX/AA/7311 | V18: XTAT | X18: REF C | Z18: 0000/XXX/AA/7312 | AD18: XTAT | AF18: REF C | AH18: 0000/XXX/AA/7313 | AL18: XTAT | AN18: REF C | AP18: 0000/XXX/AA/7536 | AT18: XTAT | AV18: REF C | AX18: 0000/XXX/AA/7537 | BB18: XTAT | BD18: REF C | BF18: 0000/XXX/AA/7317 | BJ18: XTAT | BL18: REF C | BN18: 0000/XXX/AA/7314 | BR18: XTAT | BT18: REF C | BV18: 0000/XXX/AA/7315 | BZ18: XTAT | CB18: REF C | CD18: 0000/XXX/AA/7316 | CH18: XTAT
P19: REF B | R19: UU xxxxxx | X19: REF B | Z19: UU xxxxxx | AF19: REF B | AH19: UU xxxxxx | AN19: REF B | AP19: UU xxxxxx | AV19: REF B | AX19: UU xxxxxx | BD19: REF B | BF19: UU xxxxxx | BL19: REF B | BN19: UU xxxxxx | BT19: REF B | BV19: UU xxxxxx | CB19: REF B | CD19: UU
P20: REF E | R20: 246 | X20: REF E | Z20: 247 | AF20: REF E | AH20: 248 | AN20: REF E | AP20: 249 | AV20: REF E | AX20: 250 | BD20: REF E | BF20: 251 | BL20: REF E | BN20: 252 | BT20: REF E | BV20: 253 | CB20: REF E | CD20: 510
P21: REF D | R21: 321 | X21: REF D | Z21: 322 | AF21: REF D | AH21: 323 | AN21: REF D | AP21: 324 | AV21: REF D | AX21: 325 | BD21: REF D | BF21: 326 | BL21: REF D | BN21: 328 | BT21: REF D | BV21: 327 | CB21: REF D | CD21: 585
P22: REF F | R22: Zzzzzz yyyyyy | X22: REF F | Z22: Zzzzzz yyyyyy | AF22: REF F | AH22: Zzzzzz yyyyyy | AN22: REF F | AP22: Zzzzzz yyyyyy | AV22: REF F | AX22: Zzzzzz yyyyyy | BD22: REF F | BF22: Zzzzzz yyyyyy | BL22: REF F | BN22: Zzzzzz yyyyyy | BT22: REF F | BV22: Zzzzzz yyyyyy | CB22: REF F | CD22: IMM
P23: REF G | R23: 1884/01234 | X23: REF G | Z23: 107/01234 | AF23: REF G | AH23: 108/01234 | AN23: REF G | AP23: 2018/01234 | AV23: REF G | AX23: 2054/01234 | BD23: REF G | BF23: 831/01234 | BL23: REF G | BN23: 112/01234 | BT23: REF G | BV23: 113/01234 | CB23: REF G | CD23: IMB/01234/X/0164
L24: X1
M29: X1
M30: 190307 | O30: 72 xy | P30: 54 | U30: 190308 | W30: 72 xy | X30: 48 | AC30: 190309 | AE30: 72 xy | AF30: 42 | AK30: 190310 | AM30: 72 xy | AN30: 36 | AS30: 190311 | AU30: 72 xy | AV30: 30 | BA30: 190312 | BC30: 72 xy | BD30: 24 | BI30: 190313 | BK30: 72 xy | BL30: 18 | BQ30: 190314 | BS30: 72 xy | BT30: 12 | BY30: 190568 | CA30: 12 xy | CB30: 6
M31: 36 | O31: CC: | P31: =M31 -> 36 | S31: zzzzzz | U31: 116 | W31: CC: | X31: =U31+P31 -> 152 | AA31: zzzzzz | AC31: 50 | AE31: CC: | AF31: =AC31+X31 -> 202 | AI31: zzzzzz | AK31: 96 | AM31: CC: | AN31: =AK31+AF31 -> 298 | AQ31: zzzzzz | AS31: 52 | AU31: CC: | AV31: =AX31+AN31 -> 298 | AY31: zzzzzz | BA31: 96 | BC31: CC: | BD31: =BA31+AV31 -> 394 | BG31: zzzzzz | BI31: 57 | BK31: CC: | BL31: =BI31+BD31 -> 451 | BO31: zzzzzz | BQ31: 53 | BS31: CC: | BT31: =BQ31+BL31 -> 504 | BW31: iiiiiiiiiiiiii | BY31: 30 | CA31: CC: | CB31: =BY31 -> 30
M32: ldld | N32: 66 | U32: ldld | V32: 150 | AC32: ldld | AD32: 55 | AK32: ldld | AL32: 103 | AS32: ldld | AT32: 71 | BA32: ldld | BB32: 121 | BI32: ldld | BJ32: 87 | BQ32: ldld | BR32: 86 | BY32: ldld | BZ32: 25

Sheet 05679
P2: REF C | R2: 0000/XXX/AA/07539 | V2: XTAT | X2: REF C | Z2: 0000/XXX/AA/07354 | AD2: XTAT | AF2: REF C | AH2: 0000/XXX/AA/07356 | AL2: XTAT | AN2: REF C | AP2: 0000/XXX/AA/07538 | AT2: XTAT
P3: REF B | R3: UU xxxxxx | X3: REF B | Z3: UU xxxxxx | AF3: REF B | AH3: UU xxxxxx | AN3: REF B | AP3: UU xxxxxx
P4: REF E | R4: 103 | X4: REF E | Z4: 106 | AF4: REF E | AH4: 108 | AN4: REF E | AP4: 107
P5: REF D | R5: 200 | X5: REF D | Z5: 203 | AF5: REF D | AH5: 204 | AN5: REF D | AP5: 202
P6: REF F | R6: Xxxxx yyyy | X6: REF F | Z6: Xxxxx yyyy | AF6: REF F | AH6: Zzzzzz yyyyyy | AN6: REF F | AP6: Xxxxx yyyy
P7: REF G | R7: 33204/01234 | X7: REF G | Z7: 33203/01234 | AF7: REF G | AH7: 110/01234 | AN7: REF G | AP7: 33205/01234
D11: REF A | F11: ZZ-01234-0014
D12: REF C | F12: 0000/XXX/AA/05679
D13: REF E | F13: 14 | M13: X1
D14: REF D | F14: 27 | M14: 190185 | O14: 36 xy | P14: 30 | U14: 190191 | W14: 36 xy | X14: 12 | AC14: 190192 | AE14: 36 xy | AF14: 6
D15: REF F | F15: UU | M15: 10 | O15: CC: | P15: =M15 -> 10 | S15: zzzzzz | U15: 56 | W15: CC: | X15: =U15+P15 -> 66 | AA15: zzzzzz | AC15: 12 | AE15: CC: | AF15: =AC15+X15 -> 78 | AK15: 190187 | AM15: 6 xy | AN15: 6
D16: REF G | F16: K3C 00004/01234 | M16: ldld | N16: 12 | U16: ldld | V16: 50 | AC16: ldld | AD16: 12 | AI16: iiiiiiiiiiiiii | AK16: 48 | AM16: CC: | AN16: =AK16 -> 48
AK17: ldld | AL17: 38
P19: REF C | R19: 0000/XXX/AA/07721 | V19: XTAT | X19: REF C | Z19: 0000/XXX/AA/07544 | AD19: XTAT | AF19: REF C | AH19: 0000/XXX/AA/07543 | AL19: XTAT | AN19: REF C | AP19: 0000/XXX/AA/07722 | AT19: XTAT | AV19: REF C | AX19: 0000/XXX/AA/50138 | BB19: XTAT | BD19: REF C | BF19: 0000/XXX/AA/07547 | BJ19: XTAT | BL19: REF C | BN19: 0000/XXX/AA/07720 | BR19: XTAT | BT19: REF C | BV19: 0000/XXX/AA/07540 | BZ19: XTAT
P20: REF B | R20: UU xxxxxx | X20: REF B | Z20: UU xxxxxx | AF20: REF B | AH20: UU xxxxxx | AN20: REF B | AP20: UU xxxxxx | AV20: REF B | AX20: UU xxxxxx | BD20: REF B | BF20: UU xxxxxx | BL20: REF B | BN20: UU xxxxxx | BT20: REF B | BV20: UU xxxxxx
P21: REF E | R21: 119 | X21: REF E | Z21: 121 | AF21: REF E | AH21: 123 | AN21: REF E | AP21: 124 | AV21: REF E | AX21: 55 | BD21: REF E | BF21: 126 | BL21: REF E | BN21: 122 | BT21: REF E | BV21: 120
L22: X1 | P22: REF D | R22: 219 | X22: REF D | Z22: 220 | AF22: REF D | AH22: 221 | AN22: REF D | AP22: 224 | AV22: REF D | AX22: 96 | BD22: REF D | BF22: 226 | BL22: REF D | BN22: 223 | BT22: REF D | BV22: 222
P23: REF F | R23: xxxxxxxxxx | X23: REF F | Z23: Xxxxx yyyy | AF23: REF F | AH23: xxxxxxxxxx | AN23: REF F | AP23: Xxxxx yyyy | AV23: REF F | AX23: Xxxxx yyyy | BD23: REF F | BF23: Xxxxx yyyy | BL23: REF F | BN23: Zzzzzz yyyyyy | BT23: REF F | BV23: Xxxxx yyyy
P24: REF G | R24: xxxxxxxxxx0002 | X24: REF G | Z24: 0081216/01234 | AF24: REF G | AH24: xxxxxxxxxx0001 | AN24: REF G | AP24: 81217/01234 | AV24: REF G | AX24: 5638021/01234 | BD24: REF G | BF24: 5638020/01234 | BL24: REF G | BN24: E638012/01234 | BT24: REF G | BV24: 0081216/01234
L28: X2
M31: 190203 | O31: 72 xy | P31: 48 | U31: 190205 | W31: 72 xy | X31: 36 | AC31: 190206 | AE31: 72 xy | AF31: 24 | AK31: 190207 | AM31: 72 xy | AN31: 18 | AS31: Ooeoe21 0002 | AU31: 72 xy | AV31: 12 | BA31: 190209 | BC31: 72 xy | BD31: 6
M32: 197 | O32: CC: | P32: =M32 -> 197 | S32: zzzzzz | U32: 32 | W32: CC: | X32: =U32+P32 -> 229 | AA32: zzzzzz | AC32: 123 | AE32: CC: | AF32: =AC32+X32 -> 352 | AI32: zzzzzz | AK32: 53 | AM32: CC: | AN32: =AK32+AF32 -> 405 | AQ32: zzzzzz | AS32: 64 | AU32: CC: | AV32: =AX32+AN32 -> 405 | AY32: zzzzzz | BA32: 62 | BC32: CC: | BD32: =BA32+AN32 -> 467
M33: ldld | N33: 202 | U33: ldld | V33: 77 | AC33: ldld | AD33: 32 | AK33: ldld | AL33: 75 | AS33: ldld | AT33: 44 | BA33: ldld | BB33: 44 | BI33: 190211 | BK33: 6 xy | BL33: 6
BG34: iiiiiiiiiiiiii | BI34: 87 | BK34: CC: | BL34: =BI34 -> 87 | BQ34: 190210 | BS34: 6 xy | BT34: 6
L35: X3 | BI35: ldld | BJ35: 20 | BO35: iiiiiiiiiiiiii | BQ35: 12 | BS35: CC: | BT35: =BQ35 -> 12
BQ36: ldld | BR36: 106
P38: REF C | R38: 0000/XXX/AA/07717 | V38: XTAT | X38: REF C | Z38: 0000/XXX/AA/07718 | AD38: XTAT | AF38: REF C | AH38: 0000/XXX/AA/07719 | AL38: XTAT | AN38: REF C | AP38: 0000/XXX/AA/07542 | AT38: XTAT | AV38: REF C | AX38: 0000/XXX/AA/07549 | BB38: XTAT
P39: REF B | R39: UU xxxxxx | X39: REF B | Z39: UU xxxxxx | AF39: REF B | AH39: UU xxxxxx | AN39: REF B | AP39: UU xxxxxx | AV39: REF B | AX39: UU xxxxxx
P40: REF E | R40: 135 | X40: REF E | Z40: 137 | AF40: REF E | AH40: 138 | AN40: REF E | AP40: 140 | AV40: REF E | AX40: 139
P41: REF D | R41: 228 | X41: REF D | Z41: 230 | AF41: REF D | AH41: 231 | AN41: REF D | AP41: 246 | AV41: REF D | AX41: 232
P42: REF F | R42: Zzzzzz yyyyyy | X42: REF F | Z42: Xxxxx yyyy | AF42: REF F | AH42: xxxxxxxxxx | AN42: REF F | AP42: Zzzzzz yyyyyy | AV42: REF F | AX42: Zzzzzz yyyyyy
P43: REF G | R43: E000617/01234 | X43: REF G | Z43: xy00019/01234 | AF43: REF G | AH43: xxxxxxxxxx0004 | AN43: REF G | AP43: 5019/01234 | AV43: REF G | AX43: E638143/01234
M49: X3
M50: 190224 | O50: 36 xy | P50: 36 | U50: 190228 | W50: 36 xy | X50: 24 | AC50: 190229 | AE50: 36 xy | AF50: 18 | AK50: 190232 | AM50: 36 xy | AN50: 6 | AS50: 190230 | AU50: 6 xy | AV50: 6
M51: 143 | O51: CC: | P51: =M51 -> 143 | S51: zzzzzz | U51: 35 | W51: CC: | X51: =U51+P51 -> 178 | AA51: zzzzzz | AC51: 84 | AE51: CC: | AF51: =AC51+X51 -> 262 | AI51: zzzzzz | AK51: 57 | AM51: CC: | AN51: =AK51+AF51 -> 319 | AQ51: iiiiiiiiiiiiii | AS51: 12 | AU51: CC: | AV51: =AX51 -> 0
M52: ldld | N52: 138 | U52: ldld | V52: 39 | AC52: ldld | AD52: 80 | AK52: ldld | AL52: 66 | AS52: ldld | AT52: 23

Sheet 05680
D11: REF A | F11: ZZ-01234-0009
D12: REF C | F12: 0000/XXX/AA/05680
D13: REF E | F13: 15 | P13: REF C | R13: 0000/XXX/AA/07321 | V13: XTAT | X13: REF C | Z13: 0000/XXX/AA/07322 | AD13: XTAT | AF13: REF C | AH13: 0000/XXX/AA/07326 | AL13: XTAT | AN13: REF C | AP13: 0000/XXX/AA/07330 | AT13: XTAT | AV13: REF C | AX13: 0000/XXX/AA/07333 | BB13: XTAT | BD13: REF C | BF13: 0000/XXX/AA/07328 | BJ13: XTAT
D14: REF D | F14: 28 | P14: REF B | R14: UU xxxxxx | X14: REF B | Z14: UU xxxxxx | AF14: REF B | AH14: UU xxxxxx | AN14: REF B | AP14: UU xxxxxx | AV14: REF B | AX14: UU xxxxxx | BD14: REF B | BF14: UU xxxxxx
D15: REF F | F15: UU | P15: REF E | R15: 191 | X15: REF E | Z15: 192 | AF15: REF E | AH15: 194 | AN15: REF E | AP15: 195 | AV15: REF E | AX15: 196 | BD15: REF E | BF15: 197
D16: REF G | F16: K2C 00004/01234 | P16: REF D | R16: 300 | X16: REF D | Z16: 301 | AF16: REF D | AH16: 303 | AN16: REF D | AP16: 304 | AV16: REF D | AX16: 305 | BD16: REF D | BF16: 306
P17: REF F | R17: Xxxxx yyyy | X17: REF F | Z17: Zzzzzz yyyyyy | AF17: REF F | AH17: Zzzzzz yyyyyy | AN17: REF F | AP17: Zzzzzz yyyyyy | AV17: REF F | AX17: Zzzzzz yyyyyy | BD17: REF F | BF17: Zzzzzz yyyyyy
P18: REF G | R18: 0033201/01234 | X18: REF G | Z18: E000604/01234 | AF18: REF G | AH18: E000605/01234 | AN18: REF G | AP18: E005015/01234 | AV18: REF G | AX18: E000640/01234 | BD18: REF G | BF18: E000637/01234
L23: X1
M24: X1
M25: 190284 | O25: 72 xy | P25: 48 | U25: 190288 | W25: 72 xy | X25: 42 | AC25: 190291 | AE25: 72 xy | AF25: 30 | AK25: 190293 | AM25: 72 xy | AN25: 24 | AS25: 190294 | AU25: 72 xy | AV25: 18 | BA25: 190295 | BC25: 72 xy | BD25: 12
M26: 210 | O26: CC: | P26: =M26 -> 210 | S26: zzzzzz | U26: 70 | W26: CC: | X26: =U26+P26 -> 280 | AA26: zzzzzz | AC26: 25 | AE26: CC: | AF26: =AC26+X26 -> 305 | AI26: zzzzzz | AK26: 62 | AM26: CC: | AN26: =AK26+AF26 -> 367 | AQ26: zzzzzz | AS26: 58 | AU26: CC: | AV26: =AX26+AN26 -> 367 | AY26: zzzzzz | BA26: 12 | BC26: CC: | BD26: =BA26+AV26 -> 379
M27: ldld | N27: 200 | U27: ldld | V27: 60 | AC27: ldld | AD27: 25 | AK27: ldld | AL27: 50 | AS27: ldld | AT27: 49 | BA27: ldld | BB27: 12
L29: X2
P32: REF C | R32: 0000/XXX/AA/07331 | V32: XTAT | X32: REF C | Z32: 0000/XXX/AA/07332 | AD32: XTAT
P33: REF B | R33: UU xxxxxx | X33: REF B | Z33: UU xxxxxx
P34: REF E | R34: 202 | X34: REF E | Z34: 204
P35: REF D | R35: 317 | X35: REF D | Z35: 319
P36: REF F | R36: Zzzzzz yyyyyy | X36: REF F | Z36: Zzzzzz yyyyyy
P37: REF G | R37: E000607/01234 | X37: REF G | Z37: E000608/01234
M43: X2
M44: 190303 | O44: 24 xy | P44: 24 | U44: 190305 | W44: 24 xy | X44: 12
M45: 369 | O45: CC: | P45: =M45 -> 369 | S45: zzzzzz | U45: 44 | W45: CC: | X45: =U45+P45 -> 413
M46: ldld | N46: 250 | U46: ldld | V46: 27
M163: ldld

Sheet 8144
D11: REF A | F11: ZZ-01234-001F
D12: REF C | F12: 0000/XXX/AA/08144 | P12: ZZ REF C | R12: 0000/XXX/AA/07552 | V12: XTAT | X12: ZZ REF C | Z12: 0000/XXX/AA/07723 | AD12: XTAT | AF12: ZZ REF C | AH12: 0000/XXX/AA/07724 | AL12: XTAT | AN12: ZZ REF C | AP12: 0000/XXX/AA/07339 | AT12: XTAT | AV12: ZZ REF C | AX12: 0000/XXX/AA/07348 | BB12: XTAT | BD12: ZZ REF C | BF12: 0000/XXX/AA/07334 | BJ12: XTAT | BL12: ZZ REF C | BN12: 0000/XXX/AA/07336 | BR12: XTAT | BT12: ZZ REF C | BV12: 0000/XXX/AA/07338 | BZ12: XTAT
D13: REF E | F13: 16 | P13: REF B | R13: UU xxxxxx | X13: REF B | Z13: UU xxxxxx | AF13: REF B | AH13: UU xxxxxx | AN13: REF B | AP13: UU xxxxxx | AV13: REF B | AX13: UU xxxxxx | BD13: REF B | BF13: UU xxxxxx | BL13: REF B | BN13: UU xxxxxx | BT13: REF B | BV13: UU xxxxxx
D14: REF D | F14: 29 | P14: REF E | R14: 175 | X14: REF E | Z14: 176 | AF14: REF E | AH14: 177 | AN14: REF E | AP14: 178 | AV14: REF E | AX14: 180 | BD14: REF E | BF14: 179 | BL14: REF E | BN14: 181 | BT14: REF E | BV14: 184
D15: REF F | F15: ldlddlps | P15: REF D | R15: 262 | X15: REF D | Z15: 270 | AF15: REF D | AH15: 264 | AN15: REF D | AP15: 265 | AV15: REF D | AX15: 266 | BD15: REF D | BF15: 267 | BL15: REF D | BN15: 268 | BT15: REF D | BV15: 269
D16: REF G | F16: 75416/01234 | P16: REF F | R16: Xxxxx yyyy | X16: REF F | Z16: Zzzzzz yyyyyy | AF16: REF F | AH16: xxxxxxxxxx | AN16: REF F | AP16: Zzzzzz yyyyyy | AV16: REF F | AX16: xxxxxxxxxx | BD16: REF F | BF16: Zzzzzz yyyyyy | BL16: REF F | BN16: Zzzzzz yyyyyy | BT16: REF F | BV16: Zzzzzz yyyyyy
P17: REF G | R17: 81215/01234 | X17: REF G | Z17: E638011/01234 | AF17: REF G | AH17: xxxxxxxxxx0002/01234 | AN17: REF G | AP17: E638016/01234 | AV17: REF G | AX17: xxxxxxxxxx0001/01234 | BD17: REF G | BF17: E002051/01234 | BL17: REF G | BN17: E001785/01234 | BT17: REF G | BV17: E000115/01234
M23: X1
L24: X1 | M24: 190253 | O24: 72 xy | P24: 54 | U24: 190254 | W24: 72 xy | X24: =P24-T21 -> 54 | AC24: 190255 | AE24: 72 xy | AF24: 42 | AK24: 190256 | AM24: 72 xy | AN24: 36 | AS24: 190258 | AU24: 72 xy | AV24: 30 | BA24: 190260 | BC24: 72 xy | BD24: 24 | BI24: 190261 | BK24: 72 xy | BL24: =BD24-BH21 -> 24 | BQ24: 190264 | BS24: 72 xy | BT24: 6
M25: 30 | O25: CC: | P25: =M25 -> 30 | S25: zzzzzz | U25: 17 | W25: CC: | X25: =U25+P25 -> 47 | AA25: zzzzzz | AC25: 54 | AE25: CC: | AF25: =AC25+X25 -> 101 | AI25: zzzzzz | AK25: 32 | AM25: CC: | AN25: =AK25+AF25 -> 133 | AQ25: zzzzzz | AS25: 57 | AU25: CC: | AV25: =AX25+AN25 -> 133 | AY25: zzzzzz | BA25: 66 | BC25: CC: | BD25: =BA25+AV25 -> 199 | BG25: zzzzzz | BI25: 132 | BK25: CC: | BL25: =BI25+BD25 -> 331 | BO25: zzzzzz | BQ25: 50 | BS25: CC: | BT25: =BQ25+BL25 -> 381
M26: ldld | N26: 30 | U26: ldld | V26: 17 | AC26: ldld | AD26: 54 | AK26: ldld | AL26: 32 | AS26: ldld | AT26: 57 | BA26: ldld | BB26: 66 | BI26: ldld | BJ26: 132 | BQ26: ldld | BR26: 52

Sheet 05682
P3: REF C | R3: 0000/XXX/AA/07372 | V3: XTAT | X3: REF C | Z3: 0000/XXX/AA/07374 | AD3: XTAT | AF3: REF C | AH3: 0000/XXX/AA/07375 | AL3: XTAT | AN3: REF C | AP3: 0000/XXX/AA/07376 | AT3: XTAT | AV3: REF C | AX3: 0000/XXX/AA/07377 | BB3: XTAT | BD3: REF C | BF3: 0000/XXX/AA/07930 | BJ3: XTAT | BL3: REF C | BN3: 0000/XXX/AA/07379 | BR3: XTAT | BT3: REF C | BV3: 0000/XXX/AA/07371 | BZ3: XTAT
P4: REF B | R4: UU xxxxxx | X4: REF B | Z4: UU xxxxxx | AF4: REF B | AH4: UU xxxxxx | AN4: REF B | AP4: UU xxxxxx | AV4: REF B | AX4: UU xxxxxx | BD4: REF B | BF4: UU xxxxxx | BL4: REF B | BN4: UU xxxxxx | BT4: REF B | BV4: UU xxxxxx
P5: REF E | R5: 31 | X5: REF E | Z5: 33 | AF5: REF E | AH5: 35 | AN5: REF E | AP5: 36 | AV5: REF E | AX5: 37 | BD5: REF E | BF5: 38 | BL5: REF E | BN5: 34 | BT5: REF E | BV5: 32
P6: REF D | R6: 115 | X6: REF D | Z6: 73 | AF6: REF D | AH6: 117 | AN6: REF D | AP6: 118 | AV6: REF D | AX6: 119 | BD6: REF D | BF6: 122 | BL6: REF D | BN6: 120 | BT6: REF D | BV6: 116
P7: REF F | R7: Xxxxx yyyy | X7: REF F | Z7: Xxxxx yyyy | AF7: REF F | AH7: Xxxxx yyyy | AN7: REF F | AP7: Xxxxx yyyy | AV7: REF F | AX7: Xxxxx yyyy | BD7: REF F | BF7: Xxxxx yyyy | BL7: REF F | BN7: Zzzzzz yyyyyy | BT7: REF F | BV7: Xxxxx yyyy
P8: REF G | R8: 0033216/01234 | X8: REF G | Z8: 0033223/01234 | AF8: REF G | AH8: 0033224/01234 | AN8: REF G | AP8: 0033226/01234 | AV8: REF G | AX8: 0033227/01234 | BD8: REF G | BF8: 0033228/01234 | BL8: REF G | BN8: E000630/01234 | BT8: REF G | BV8: 0033222/01234
D11: REF A | F11: ZZ-01234-0016
D12: REF C | F12: 0000/XXX/AA/05682
D13: REF E | F13: 17
D14: REF D | F14: 30 | M14: X1
D15: REF F | F15: UU | M15: 190100 | O15: 72 xy | P15: 48 | U15: 190103 | W15: 72 xy | X15: 36 | AC15: 190106 | AE15: 72 xy | AF15: 24 | AK15: 190107 | AM15: 72 xy | AN15: 18 | AS15: 190108 | AU15: 72 xy | AV15: 12 | BA15: 190112 | BC15: 72 xy | BD15: 6
D16: REF G | F16: K2C 00006/01234 | M16: 41 | O16: CC: | P16: 41 | S16: zzzzzz | U16: 68 | W16: CC: | X16: 109 | AA16: zzzzzz | AC16: 46 | AE16: CC: | AF16: 155 | AI16: zzzzzz | AK16: 42 | AM16: CC: | AN16: 197 | AQ16: zzzzzz | AS16: 80 | AU16: CC: | AV16: 277 | AY16: zzzzzz | BA16: 4 | BC16: CC: | BD16: =AV16+BA16 -> 281
M17: ldld | N17: 45 | U17: ldld | V17: 70 | AC17: ldld | AD17: 50 | AK17: ldld | AL17: 45 | AS17: ldld | AT17: 80 | BA17: ldld | BB17: 10 | BI17: 190104 | BK17: 6 xy | BL17: 6
BG18: iiiiiiiiiiiiii | BI18: 86 | BK18: CC: | BL18: =BI18 -> 86 | BQ18: 190101 | BS18: 6 xy | BT18: 6
BI19: ldld | BJ19: 79 | BO19: iiiiiiiiiiiiii | BQ19: 52 | BS19: CC: | BT19: =BQ19 -> 52
BQ20: ldld | BR20: 56
P21: REF C | R21: 0000/XXX/AA/07554 | V21: XTAT
P22: REF B | R22: UU xxxxxx
P23: REF E | R23: 42
L24: X1 | P24: REF D | R24: 144
P25: REF F | R25: Zzzzzz yyyyyy
P26: REF G | R26: E000889/01234
P27: AdreXXe
L29: X2
L32: X3
M33: 190130 | O33: 6 xy | P33: 3
M34: 83 | O34: CC: | P34: 83
M35: ldld | N35: 82
P37: REF C | R37: 0000/XXX/AA/7373 | V37: XTAT | X37: REF C | Z37: 0000/XXX/AA/7378 | AD37: XTAT | AF37: REF C | AH37: 0000/XXX/AA/7381 | AL37: XTAT
P38: REF B | R38: UU xxxxxx | X38: REF B | Z38: UU xxxxxx | AF38: REF B | AH38: UU xxxxxx
P39: REF E | R39: 57 | X39: REF E | Z39: 59 | AF39: REF E | AH39: 61
P40: REF D | R40: 145 | X40: REF D | Z40: 146 | AF40: REF D | AH40: 147
P41: REF F | R41: Xxxxx yyyy | X41: REF F | Z41: Xxxxx yyyy | AF41: REF F | AH41: Xxxxx yyyy
P42: REF G | R42: 0033217/01234 | X42: REF G | Z42: 0033219/01234 | AF42: REF G | AH42: 0081213/01234
M48: X3
M49: 190131 | O49: 24 xy | P49: 24 | U49: 190134 | W49: 24 xy | X49: 18 | AC49: 190135 | AE49: 24 xy | AF49: 12
M50: 40 | O50: CC: | P50: 40 | S50: zzzzzz | U50: 41 | W50: CC: | X50: 81 | AA50: zzzzzz | AC50: 51 | AE50: CC: | AF50: 132
M51: ldld | N51: 46 | U51: ldld | V51: 81 | AC51: ldld | AD51: 53

Sheet 05682Essai
P3: REF C | R3: 0000/XXX/AA/07372 | V3: XTAT | X3: REF C | Z3: 0000/XXX/AA/07374 | AD3: XTAT | AF3: REF C | AH3: 0000/XXX/AA/07375 | AL3: XTAT | AN3: REF C | AP3: 0000/XXX/AA/07376 | AT3: XTAT | AV3: REF C | AX3: 0000/XXX/AA/07377 | BB3: XTAT | BD3: REF C | BF3: 0000/XXX/AA/07930 | BJ3: XTAT | BL3: REF C | BN3: 0000/XXX/AA/07379 | BR3: XTAT | BT3: REF C | BV3: 0000/XXX/AA/07371 | BZ3: XTAT
P4: REF B | R4: UU xxxxxx | X4: REF B | Z4: UU xxxxxx | AF4: REF B | AH4: UU xxxxxx | AN4: REF B | AP4: UU xxxxxx | AV4: REF B | AX4: UU xxxxxx | BD4: REF B | BF4: UU xxxxxx | BL4: REF B | BN4: UU xxxxxx | BT4: REF B | BV4: UU xxxxxx
P5: REF E | R5: 31 | X5: REF E | Z5: 33 | AF5: REF E | AH5: 35 | AN5: REF E | AP5: 36 | AV5: REF E | AX5: 37 | BD5: REF E | BF5: 38 | BL5: REF E | BN5: 34 | BT5: REF E | BV5: 32
P6: REF D | R6: 115 | X6: REF D | Z6: 73 | AF6: REF D | AH6: 117 | AN6: REF D | AP6: 118 | AV6: REF D | AX6: 119 | BD6: REF D | BF6: 122 | BL6: REF D | BN6: 120 | BT6: REF D | BV6: 116
P7: REF F | R7: Xxxxx yyyy | X7: REF F | Z7: Xxxxx yyyy | AF7: REF F | AH7: Xxxxx yyyy | AN7: REF F | AP7: Xxxxx yyyy | AV7: REF F | AX7: Xxxxx yyyy | BD7: REF F | BF7: Xxxxx yyyy | BL7: REF F | BN7: Zzzzzz yyyyyy | BT7: REF F | BV7: Xxxxx yyyy
P8: REF G | R8: 0033216/01234 | X8: REF G | Z8: 0033223/01234 | AF8: REF G | AH8: 0033224/01234 | AN8: REF G | AP8: 0033226/01234 | AV8: REF G | AX8: 0033227/01234 | BD8: REF G | BF8: 0033228/01234 | BL8: REF G | BN8: E000630/01234 | BT8: REF G | BV8: 0033222/01234
D11: REF A | F11: ZZ-01234-0016
D12: REF C | F12: 0000/XXX/AA/05682
D13: REF E | F13: 17
D14: REF D | F14: 30 | M14: X1
D15: REF F | F15: UU | M15: 190100 | O15: 72 xy | P15: 48 | U15: 190103 | W15: 72 xy | X15: 36 | AC15: 190106 | AE15: 72 xy | AF15: 24 | AK15: 190107 | AM15: 72 xy | AN15: 18 | AS15: 190108 | AU15: 72 xy | AV15: 12 | BA15: 190112 | BC15: 72 xy | BD15: 6
D16: REF G | F16: K2C 00006/01234 | M16: 41 | O16: CC: | P16: 41 | S16: zzzzzz | U16: 68 | W16: CC: | X16: 109 | AA16: zzzzzz | AC16: 46 | AE16: CC: | AF16: 155 | AI16: zzzzzz | AK16: 42 | AM16: CC: | AN16: 197 | AQ16: zzzzzz | AS16: 80 | AU16: CC: | AV16: 277 | AY16: zzzzzz | BA16: 4 | BC16: CC: | BD16: =AV16+BA16 -> 281
M17: ldld | N17: 45 | U17: ldld | V17: 70 | AC17: ldld | AD17: 50 | AK17: ldld | AL17: 45 | AS17: ldld | AT17: 80 | BA17: ldld | BB17: 10 | BI17: 190104 | BK17: 6 xy | BL17: 6
BG18: iiiiiiiiiiiiii | BI18: 86 | BK18: CC: | BL18: =BI18 -> 86 | BQ18: 190101 | BS18: 6 xy | BT18: 6
BI19: ldld | BJ19: 79 | BO19: iiiiiiiiiiiiii | BQ19: 52 | BS19: CC: | BT19: =BQ19 -> 52
BQ20: ldld | BR20: 56
P21: REF C | R21: 0000/XXX/AA/07554 | V21: XTAT
P22: REF B | R22: UU xxxxxx
P23: REF E | R23: 42
L24: X1 | P24: REF D | R24: 144
P25: REF F | R25: Zzzzzz yyyyyy
P26: REF G | R26: E000889/01234
P27: AdreXXe
L29: X2
AC31: Feuille de test en dernière position
L32: X3 | AC32: Valeurs en jaune modifiées.
M33: 190130 | O33: 6 xy | P33: 3
M34: 83 | O34: CC: | P34: 83
M35: ldld | N35: 82
P37: REF C | R37: Valeur RefC 777 | V37: XTAT | X37: REF C | Z37: Valeur RefC 888 | AD37: XTAT | AF37: REF C | AH37: Valeur RefC 999 | AL37: XTAT
P38: REF B | R38: UU xxxxxx | X38: REF B | Z38: UU xxxxxx | AF38: REF B | AH38: UU xxxxxx
P39: REF E | R39: 59 | X39: REF E | Z39: 59 | AF39: REF E | AH39: 61
P40: REF D | R40: Valeur RefD 111 | X40: REF D | Z40: Valeur RefD 222 | AF40: REF D | AH40: Valeur RefD 333
P41: REF F | R41: Xxxxx yyyy | X41: REF F | Z41: Xxxxx yyyy | AF41: REF F | AH41: Xxxxx yyyy
P42: REF G | R42: 0033217/01234 | X42: REF G | Z42: 0033219/01234 | AF42: REF G | AH42: 0081213/01234
M48: X3
M49: 190131 | O49: 24 xy | P49: 24 | U49: 190134 | W49: 24 xy | X49: 18 | AC49: 190135 | AE49: 24 xy | AF49: 12
M50: 40 | O50: CC: | P50: 40 | S50: zzzzzz | U50: 41 | W50: CC: | X50: 81 | AA50: zzzzzz | AC50: 51 | AE50: CC: | AF50: 132
M51: ldld | N51: 46 | U51: ldld | V51: 81 | AC51: ldld | AD51: 53

Sheet 05682Essai (2)
P3: REF C | R3: 0000/XXX/AA/07372 | V3: XTAT | X3: REF C | Z3: 0000/XXX/AA/07374 | AD3: XTAT | AF3: REF C | AH3: 0000/XXX/AA/07375 | AL3: XTAT | AN3: REF C | AP3: 0000/XXX/AA/07376 | AT3: XTAT | AV3: REF C | AX3: 0000/XXX/AA/07377 | BB3: XTAT | BD3: REF C | BF3: 0000/XXX/AA/07930 | BJ3: XTAT | BL3: REF C | BN3: 0000/XXX/AA/07379 | BR3: XTAT | BT3: REF C | BV3: 0000/XXX/AA/07371 | BZ3: XTAT
P4: REF B | R4: UU xxxxxx | X4: REF B | Z4: UU xxxxxx | AF4: REF B | AH4: UU xxxxxx | AN4: REF B | AP4: UU xxxxxx | AV4: REF B | AX4: UU xxxxxx | BD4: REF B | BF4: UU xxxxxx | BL4: REF B | BN4: UU xxxxxx | BT4: REF B | BV4: UU xxxxxx
P5: REF E | R5: 31 | X5: REF E | Z5: 33 | AF5: REF E | AH5: 35 | AN5: REF E | AP5: 36 | AV5: REF E | AX5: 37 | BD5: REF E | BF5: 38 | BL5: REF E | BN5: 34 | BT5: REF E | BV5: 32
P6: REF D | R6: 115 | X6: REF D | Z6: 73 | AF6: REF D | AH6: 117 | AN6: REF D | AP6: 118 | AV6: REF D | AX6: 119 | BD6: REF D | BF6: 122 | BL6: REF D | BN6: 120 | BT6: REF D | BV6: 116
P7: REF F | R7: Xxxxx yyyy | X7: REF F | Z7: Xxxxx yyyy | AF7: REF F | AH7: Xxxxx yyyy | AN7: REF F | AP7: Xxxxx yyyy | AV7: REF F | AX7: Xxxxx yyyy | BD7: REF F | BF7: Xxxxx yyyy | BL7: REF F | BN7: Zzzzzz yyyyyy | BT7: REF F | BV7: Xxxxx yyyy
P8: REF G | R8: 0033216/01234 | X8: REF G | Z8: 0033223/01234 | AF8: REF G | AH8: 0033224/01234 | AN8: REF G | AP8: 0033226/01234 | AV8: REF G | AX8: 0033227/01234 | BD8: REF G | BF8: 0033228/01234 | BL8: REF G | BN8: E000630/01234 | BT8: REF G | BV8: 0033222/01234
D11: REF A | F11: ZZ-01234-0016
D12: REF C | F12: 0000/XXX/AA/05682
D13: REF E | F13: 17
D14: REF D | F14: 30 | M14: X1
D15: REF F | F15: UU | M15: 190100 | O15: 72 xy | P15: 48 | U15: 190103 | W15: 72 xy | X15: 36 | AC15: 190106 | AE15: 72 xy | AF15: 24 | AK15: 190107 | AM15: 72 xy | AN15: 18 | AS15: 190108 | AU15: 72 xy | AV15: 12 | BA15: 190112 | BC15: 72 xy | BD15: 6
D16: REF G | F16: K2C 00006/01234 | M16: 41 | O16: CC: | P16: 41 | S16: zzzzzz | U16: 68 | W16: CC: | X16: 109 | AA16: zzzzzz | AC16: 46 | AE16: CC: | AF16: 155 | AI16: zzzzzz | AK16: 42 | AM16: CC: | AN16: 197 | AQ16: zzzzzz | AS16: 80 | AU16: CC: | AV16: 277 | AY16: zzzzzz | BA16: 4 | BC16: CC: | BD16: =AV16+BA16 -> 281
M17: ldld | N17: 45 | U17: ldld | V17: 70 | AC17: ldld | AD17: 50 | AK17: ldld | AL17: 45 | AS17: ldld | AT17: 80 | BA17: ldld | BB17: 10 | BI17: 190104 | BK17: 6 xy | BL17: 6
BG18: iiiiiiiiiiiiii | BI18: 86 | BK18: CC: | BL18: =BI18 -> 86 | BQ18: 190101 | BS18: 6 xy | BT18: 6
BI19: ldld | BJ19: 79 | BO19: iiiiiiiiiiiiii | BQ19: 52 | BS19: CC: | BT19: =BQ19 -> 52
BQ20: ldld | BR20: 56
P21: REF C | R21: 0000/XXX/AA/07554 | V21: XTAT
P22: REF B | R22: UU xxxxxx
P23: REF E | R23: 42
L24: X1 | P24: REF D | R24: 144
P25: REF F | R25: Zzzzzz yyyyyy
P26: REF G | R26: E000889/01234
P27: AdreXXe
L29: X2
AC31: Feuille de test en dernière position
L32: X3 | AC32: Valeurs en jaune modifiées.
M33: 190130 | O33: 6 xy | P33: 3
M34: 83 | O34: CC: | P34: 83
M35: ldld | N35: 82
P37: REF C | R37: Valeur RefC 777 | V37: XTAT | X37: REF C | Z37: Valeur RefC 888 | AD37: XTAT | AF37: REF C | AH37: Valeur RefC 999 | AL37: XTAT
P38: REF B | R38: UU xxxxxx | X38: REF B | Z38: UU xxxxxx | AF38: REF B | AH38: UU xxxxxx
P39: REF E | R39: 59 | X39: REF E | Z39: 59 | AF39: REF E | AH39: 61
P40: REF D | R40: Valeur RefD 111 | X40: REF D | Z40: Valeur RefD 222 | AF40: REF D | AH40: Valeur RefD 333
P41: REF F | R41: Xxxxx yyyy | X41: REF F | Z41: Xxxxx yyyy | AF41: REF F | AH41: Xxxxx yyyy
P42: REF G | R42: 0033217/01234 | X42: REF G | Z42: 0033219/01234 | AF42: REF G | AH42: 0081213/01234
M48: X3
M49: 190131 | O49: 24 xy | P49: 24 | U49: 190134 | W49: 24 xy | X49: 18 | AC49: 190135 | AE49: 24 xy | AF49: 12
M50: 40 | O50: CC: | P50: 40 | S50: zzzzzz | U50: 41 | W50: CC: | X50: 81 | AA50: zzzzzz | AC50: 51 | AE50: CC: | AF50: 132
M51: ldld | N51: 46 | U51: ldld | V51: 81 | AC51: ldld | AD51: 53
